fUST/lending_fUST_20250531
["ID","MTS","AMOUNT","RATE_DAILY","PERIOD"]
[363282980,1748657444956,-486.04,0.00019726,2]
[363282982,1748657444965,-522.38,0.00019726,2]
[363282984,1748657444974,-1148.61,0.00019726,2]
[363282986,1748657444983,-217.15233878,0.00019728,2]
[363282988,1748657444992,-225.18697532,0.00019783,2]
[363282990,1748657445001,-1000.0,0.000198,2]
[363282992,1748657445010,-1000.0,0.000198,3]
[363282994,1748657445020,-602.48816813,0.00019801,2]
[363282996,1748657445029,-3132.23631728,0.00019831,2]
[363282998,1748657445038,-233.51889341,0.00019838,2]
[363283000,1748657445048,-242.15909246,0.00019893,2]
[363283002,1748657445056,-1830.50946,0.000199,5]
[363283004,1748657445066,-1000.0,0.0001992,5]
[363283006,1748657445075,-1000.0,0.0001994,5]
[363283008,1748657445084,-251.11897888,0.00019948,2]
[363283010,1748657445093,-1000.0,0.0001996,5]
[363283012,1748657445102,-1000.0,0.0001998,5]
[363283014,1748657445112,-578.7,0.00019999,2]
[363283016,1748657445121,-5000.0,0.0002,2]
[363283018,1748657445130,-206.0,0.0002,2]
[363283020,1748657445140,-206.0,0.0002,2]
[363283022,1748657445148,-206.0,0.0002,2]
[363283024,1748657445157,-324.27971619,0.0002,5]
[363283026,1748657445166,-1000.0,0.0002,5]
[363283028,1748657445175,-175.395,0.0002,2]
[363283030,1748657445184,-4189.0,0.0002,2]
[363283032,1748657445193,-640.0,0.0002,2]
[363283034,1748657445202,-1267.95,0.0002,2]
[363283036,1748657445211,-150.0,0.0002,30]
[363283038,1748657445220,-430.0,0.0002,2]
[363283040,1748657445230,-430.0,0.0002,2]
[363283042,1748657445239,-604.05,0.0002,2]
[363283044,1748657445248,-300.0,0.0002,2]
[363283046,1748657445257,-1252.54,0.0002,2]
[363283048,1748657445267,-1208.2,0.0002,2]
[363283051,1748657445277,-430.0,0.0002,2]
[363283053,1748657445286,-1485.08,0.0002,2]
[363283055,1748657445296,-430.0,0.0002,2]
[363283057,1748657445305,-779.43,0.0002,2]
[363283059,1748657445315,-1041.81,0.0002,2]
[363283061,1748657445326,-430.0,0.0002,2]
[363283063,1748657445336,-430.0,0.0002,2]
[363283065,1748657445348,-430.0,0.0002,2]
[363283067,1748657445358,-816.65,0.0002,2]
[363283069,1748657445367,-611.56,0.0002,2]
[363283071,1748657445377,-155.0,0.0002,2]
[363283073,1748657445387,-486.04,0.0002,2]
[363283075,1748657445398,-522.38,0.0002,2]
[363283077,1748657445407,-1148.61,0.0002,2]
[363283079,1748657445416,-260.4103811,0.00020003,2]
[363283081,1748657445427,-543.965,0.00020055,2]
[363283083,1748657445436,-1100.0,0.00020056,2]
[363283085,1748657445446,-270.0455652,0.00020058,2]
[363283087,1748657445456,-160.0,0.00020064,3]
[363283089,1748657445466,-3132.23631728,0.00020072,2]
[363283091,1748657445475,-280.03725112,0.00020113,2]
[363283093,1748657445485,-602.48816813,0.00020128,2]
[363283095,1748657445494,-290.39862941,0.00020168,2]
[363283097,1748657445504,-197.903039,0.00020187,2]
[363283099,1748657445513,-2500.0,0.00020192,2]
[363283101,1748657445523,-301.1433787,0.00020223,2]
[363283103,1748657445532,-578.7,0.00020273,2]
[363283105,1748657445542,-640.0,0.00020273,2]
[363283107,1748657445551,-1267.95,0.00020273,2]
[363283109,1748657445562,-430.0,0.00020273,2]
[363283111,1748657445571,-430.0,0.00020273,2]
[363283113,1748657445581,-604.05,0.00020273,2]
[363283116,1748657445590,-1252.54,0.00020273,2]
[363283117,1748657445599,-1208.2,0.00020273,2]
[363283119,1748657445609,-430.0,0.00020273,2]
[363283121,1748657445618,-1485.08,0.00020273,2]
[363283123,1748657445627,-281.24505676,0.00020273,2]
[363283125,1748657445638,-779.43,0.00020273,2]
[363283127,1748657445647,-1041.81,0.00020273,2]
[363283129,1748657445656,-430.0,0.00020273,2]
[363283131,1748657445665,-430.0,0.00020273,2]
[363283133,1748657445674,-430.0,0.00020273,2]
[363283135,1748657445683,-816.65,0.00020273,2]
[363283137,1748657445692,-611.56,0.00020273,2]
[363283139,1748657445702,-486.04,0.00020273,2]
[363283142,1748657445711,-522.38,0.00020273,2]
[363283144,1748657445722,-1148.61,0.00020273,2]
[363283146,1748657445732,-166.0,0.00020274,2]
[363283148,1748657445741,-3132.23631728,0.00020314,3]
[363283151,1748657445750,-212.77096907,0.0002032,3]
[363283152,1748657445759,-842.5625,0.0002032,3]
[363283154,1748657445768,-12664.98044988,0.0002032,3]
[363283157,1748657445778,-160.0,0.00020372,4]
[363283160,1748657445787,-158.368211,0.00020466,2]
[363283162,1748657445797,-192.0318378,0.00020466,2]
[363283164,1748657445806,-153.0,0.00020466,2]
[363283166,1748657445815,-153.0,0.00020466,2]
[363283168,1748657445825,-602.48816813,0.00020477,2]
[363283170,1748657445834,-2000.0,0.000205,2]
[363283172,1748657445844,-578.7,0.00020547,2]
[363283174,1748657445853,-640.0,0.00020547,2]
[363283176,1748657445863,-1267.95,0.00020547,2]
[363283179,1748657445873,-430.0,0.00020547,2]
[363283181,1748657445883,-430.0,0.00020547,2]
[363283184,1748657445892,-604.05,0.00020547,2]
[363283187,1748657445901,-1252.54,0.00020547,2]
[363283189,1748657445910,-1208.2,0.00020547,2]
[363283191,1748657445919,-444.21445327,0.00020547,2]
[363283193,1748657445929,-1485.08,0.00020547,2]
[363283195,1748657445938,-779.43,0.00020547,2]
[363283197,1748657445947,-1041.81,0.00020547,2]
[363283199,1748657445957,-430.0,0.00020547,2]
[363283201,1748657445966,-430.0,0.00020547,2]
[363283203,1748657445976,-430.0,0.00020547,2]
[363283219,1748657446110,-816.65,0.00020547,2]
[363283222,1748657446119,-611.56,0.00020547,2]
[363283224,1748657446130,-486.04,0.00020547,2]
[363283225,1748657446139,-522.38,0.00020547,2]
[363283227,1748657446148,-1148.61,0.00020547,2]
[363283229,1748657446157,-5000.0,0.00020548,2]
[363283231,1748657446167,-155.0,0.00020548,2]
[363283233,1748657446177,-3132.23631728,0.00020555,3]
[363283236,1748657446189,-160.0,0.0002068,5]
[363283238,1748657446200,-3000.0,0.0002074,2]
[363283240,1748657446209,-602.48816813,0.00020751,2]
[363283242,1748657446219,-3132.23631728,0.00020797,4]
[363283244,1748657446228,-1000.0,0.000208,4]
[363283246,1748657446238,-2000.0,0.000208,5]
[363283248,1748657446247,-2000.0,0.000208,6]
[363283251,1748657446258,-578.7,0.00020821,2]
[363283253,1748657446268,-640.0,0.00020821,2]
[363283255,1748657446278,-1267.95,0.00020821,2]
[363283257,1748657446288,-430.0,0.00020821,2]
[363283259,1748657446297,-323.53493338,0.00020821,2]
[363283261,1748657446306,-604.05,0.00020821,2]
[363283263,1748657446315,-1252.54,0.00020821,2]
[363283265,1748657446325,-1208.2,0.00020821,2]
[363283267,1748657446334,-1485.08,0.00020821,2]
[363283269,1748657446349,-779.43,0.00020821,2]
[363283271,1748657446360,-1041.81,0.00020821,2]
[363283273,1748657446369,-430.0,0.00020821,2]
[363283275,1748657446379,-430.0,0.00020821,2]
[363283277,1748657446390,-430.0,0.00020821,2]
[363283279,1748657446400,-816.65,0.00020821,2]
[363283281,1748657446410,-611.56,0.00020821,2]
[363283283,1748657446421,-486.04,0.00020821,2]
[363283285,1748657446431,-522.38,0.00020821,2]
[363283287,1748657446441,-1148.61,0.00020821,2]
[363283289,1748657446450,-160.0,0.00020988,6]
[363283291,1748657446460,-3000.0,0.00021,2]
[363283293,1748657446469,-10000.0,0.00021,5]
[363283295,1748657446478,-10000.0,0.00021,5]
[363283297,1748657446488,-10000.0,0.00021,5]
[363283299,1748657446498,-4178.0,0.00021,5]
[363283301,1748657446508,-3000.0,0.0002101,2]
[363283303,1748657446518,-3000.0,0.0002102,2]
[363283305,1748657446528,-3000.0,0.0002103,2]
[363283307,1748657446537,-3132.23631728,0.00021038,4]
[363283309,1748657446547,-153.841363,0.00021038,4]
[363283311,1748657446556,-3000.0,0.0002104,2]
[363283313,1748657446566,-3000.0,0.0002105,2]
[363283315,1748657446575,-3000.0,0.0002106,2]
[363283317,1748657446585,-3000.0,0.0002107,2]
[363283319,1748657446594,-3000.0,0.0002108,2]
[363283321,1748657446604,-602.48816813,0.00021082,2]
[363283323,1748657446614,-3000.0,0.0002109,2]
[363283325,1748657446623,-223.0315306,0.00021094,2]
[363283327,1748657446633,-578.7,0.00021095,2]
[363283329,1748657446643,-640.0,0.00021095,2]
[363283331,1748657446652,-1267.95,0.00021095,2]
[363283333,1748657446662,-430.0,0.00021095,2]
[363283335,1748657446671,-604.05,0.00021095,2]
[363283337,1748657446681,-1252.54,0.00021095,2]
[363283339,1748657446690,-1208.2,0.00021095,2]
[363283341,1748657446699,-1485.08,0.00021095,2]
[363283343,1748657446709,-779.43,0.00021095,2]
[363283345,1748657446719,-1041.81,0.00021095,2]
[363283347,1748657446728,-430.0,0.00021095,2]
[363283349,1748657446737,-430.0,0.00021095,2]
[363283351,1748657446746,-430.0,0.00021095,2]
[363283353,1748657446756,-816.65,0.00021095,2]
[363283355,1748657446766,-611.56,0.00021095,2]
[363283357,1748657446775,-486.04,0.00021095,2]
[363283359,1748657446783,-522.38,0.00021095,2]
[363283361,1748657446792,-1148.61,0.00021095,2]
[363283363,1748657446801,-5000.0,0.00021096,2]
[363283365,1748657446810,-3000.0,0.000211,2]
[363283367,1748657446819,-3000.0,0.0002111,2]
[363283369,1748657446828,-3000.0,0.0002112,2]
[363283371,1748657446839,-3000.0,0.0002113,2]
[363283373,1748657446849,-3000.0,0.0002114,2]
[363283374,1748657446858,-3000.0,0.0002115,2]
[363283376,1748657446869,-1100.0,0.00021152,2]
[363283379,1748657446879,-3000.0,0.0002116,2]
[363283381,1748657446889,-3000.0,0.0002117,2]
[363283383,1748657446898,-3000.0,0.0002118,2]
[363283385,1748657446907,-3000.0,0.0002119,2]
[363283387,1748657446916,-3253.08732977,0.0002119,2]
[363283389,1748657446929,-3000.0,0.000212,2]
[363283390,1748657446939,-3000.0,0.0002121,2]
[363283392,1748657446948,-3000.0,0.0002122,2]
[363283394,1748657446957,-3000.0,0.0002123,2]
[363283396,1748657446967,-3000.0,0.0002124,2]
[363283399,1748657446976,-542.20288829,0.00021249,30]
[363283400,1748657446986,-3000.0,0.0002125,2]
[363283403,1748657446995,-3000.0,0.0002126,2]
[363283405,1748657447005,-2229.721918,0.00021265,3]
[363283406,1748657447014,-3000.0,0.0002127,2]
[363283408,1748657447023,-3132.23631728,0.00021279,5]
[363283410,1748657447032,-3000.0,0.0002128,2]
[363283413,1748657447042,-3500.0,0.00021288,2]
[363283415,1748657447051,-153.0,0.00021288,2]
[363283417,1748657447061,-3000.0,0.0002129,2]
[363283418,1748657447071,-160.0,0.00021296,7]
[363283421,1748657447080,-160.0,0.00021296,5]
[363283423,1748657447089,-5842.455373,0.000213,2]
[363283425,1748657447098,-542.20288829,0.00021307,30]
[363283427,1748657447108,-602.48816813,0.00021356,2]
[363283429,1748657447117,-542.20288829,0.00021366,30]
[363283431,1748657447127,-578.7,0.00021369,2]
[363283433,1748657447138,-640.0,0.00021369,2]
[363283435,1748657447147,-1267.95,0.00021369,2]
[363283437,1748657447156,-430.0,0.00021369,2]
[363283439,1748657447166,-604.05,0.00021369,2]
[363283441,1748657447175,-1252.54,0.00021369,2]
[363283443,1748657447184,-1208.2,0.00021369,2]
[363283445,1748657447193,-1485.08,0.00021369,2]
[363283447,1748657447202,-779.43,0.00021369,2]
[363283449,1748657447212,-1041.81,0.00021369,2]
[363283451,1748657447222,-430.0,0.00021369,2]
[363283453,1748657447231,-262.59928098,0.00021369,2]
[363283455,1748657447241,-159.16363594,0.00021369,2]
[363283457,1748657447250,-816.65,0.00021369,2]
[363283459,1748657447259,-611.56,0.00021369,2]
[363283461,1748657447269,-486.04,0.00021369,2]
[363283463,1748657447278,-522.38,0.00021369,2]
[363283465,1748657447288,-1148.61,0.00021369,2]
[363283467,1748657447297,-151.0,0.00021396,2]
[363283469,1748657447306,-542.20288829,0.00021425,30]
[363283471,1748657447316,-823.0,0.00021452,2]
[363283473,1748657447326,-823.0,0.00021454,2]
[363283475,1748657447335,-602.48816818,0.00021456,2]
[363283477,1748657447349,-542.20288829,0.00021484,30]
[363283479,1748657447359,-2000.0,0.000215,2]
[363283481,1748657447369,-3132.23631728,0.00021521,5]
[363283483,1748657447380,-3382.51,0.00021542,2]
[363283485,1748657447390,-542.20288829,0.00021542,30]
[363283487,1748657447399,-388.81986765,0.000216,2]
[363283489,1748657447408,-542.20288829,0.00021601,30]
[363283491,1748657447419,-578.7,0.00021643,2]
[363283493,1748657447429,-640.0,0.00021643,2]
[363283495,1748657447438,-1267.95,0.00021643,2]
[363283497,1748657447448,-430.0,0.00021643,2]
[363283499,1748657447458,-604.05,0.00021643,2]
[363283501,1748657447467,-1252.54,0.00021643,2]
[363283503,1748657447477,-1208.2,0.00021643,2]
[363283505,1748657447487,-1485.08,0.00021643,2]
[363283507,1748657447497,-779.43,0.00021643,2]
[363283509,1748657447507,-1041.81,0.00021643,2]
[363283511,1748657447516,-430.0,0.00021643,2]
[363283513,1748657447526,-816.65,0.00021643,2]
[363283515,1748657447535,-611.56,0.00021643,2]
[363283517,1748657447545,-486.04,0.00021643,2]
[363283519,1748657447554,-522.38,0.00021643,2]
[363283521,1748657447563,-1148.61,0.00021643,2]
[363283523,1748657447573,-5000.0,0.00021644,2]
[363283525,1748657447583,-542.20288829,0.0002166,30]
[363283527,1748657447592,-194.91426386,0.00021673,2]
[363283529,1748657447601,-500.0,0.00021673,2]
[363283531,1748657447610,-500.0,0.00021673,2]
[363283533,1748657447620,-570.39206092,0.00021673,2]
[363283535,1748657447629,-500.0,0.00021673,2]
[363283537,1748657447638,-500.0,0.00021673,2]
[363283539,1748657447647,-500.0,0.00021673,2]
[363283541,1748657447657,-432.82338581,0.00021673,2]
[363283543,1748657447666,-500.0,0.00021673,2]
[363283545,1748657447677,-500.0,0.00021673,2]
[363283547,1748657447686,-500.0,0.00021673,2]
[363283549,1748657447695,-500.0,0.00021673,2]
[363283551,1748657447705,-506.58068065,0.00021673,2]
[363283553,1748657447714,-500.0,0.00021673,2]
[363283555,1748657447723,-502.647107,0.00021673,2]
[363283557,1748657447732,-501.16466585,0.00021673,2]
[363283559,1748657447741,-502.06588637,0.00021673,2]
[363283561,1748657447751,-500.0,0.00021673,2]
[363283563,1748657447760,-500.0,0.00021673,2]
[363283565,1748657447769,-500.0,0.00021673,2]
[363283567,1748657447778,-501.21357946,0.00021673,2]
[363283569,1748657447787,-500.0,0.00021673,2]
[363283571,1748657447796,-500.0,0.00021673,2]
[363283573,1748657447805,-500.0,0.00021673,2]
[363283575,1748657447814,-500.0,0.00021673,2]
[363283577,1748657447823,-502.84122441,0.00021673,2]
[363283579,1748657447832,-505.01652487,0.00021673,2]
[363283581,1748657447841,-501.60266877,0.00021673,2]
[363283583,1748657447851,-500.0,0.00021673,2]
[363283585,1748657447860,-500.0,0.00021673,2]
[363283587,1748657447869,-215.99549423,0.00021673,2]
[363283589,1748657447878,-500.0,0.00021673,2]
[363283591,1748657447889,-500.83944222,0.00021673,2]
[363283593,1748657447898,-500.0,0.00021673,2]
[363283595,1748657447907,-500.0,0.00021673,2]
[363283597,1748657447918,-600.0,0.00021673,2]
[363283599,1748657447927,-500.0,0.00021673,2]
[363283601,1748657447937,-500.0,0.00021673,2]
[363283603,1748657447946,-500.0,0.00021673,2]
[363283604,1748657447955,-500.0,0.00021673,2]
[363283606,1748657447964,-500.0,0.00021673,2]
[363283609,1748657447974,-62263.89422749,0.000217,2]
[363283610,1748657447984,-101870.93614981,0.000217,2]
[363283611,1748657447993,-33246.5305824,0.000217,2]
[363283614,1748657448154,-6491.94835633,0.000217,2]
[363283616,1748657448166,-34960.14536291,0.000217,2]
[363283619,1748657448178,-16613.31282326,0.000217,2]
[363283621,1748657448188,-151.0,0.000217,2]
[363283623,1748657448197,-151.0,0.000217,2]
[363283625,1748657448207,-151.568797,0.000217,2]
[363283627,1748657448217,-2000.0,0.000217,2]
[363283629,1748657448227,-542.20288829,0.00021718,30]
[363283631,1748657448237,-3132.23631728,0.00021762,5]
[363283633,1748657448246,-542.20288829,0.00021777,30]
[363283635,1748657448256,-4800.0,0.000218,3]
[363283637,1748657448266,-2001.96560727,0.000218,4]
[363283639,1748657448276,-151.0,0.000218,2]
[363283641,1748657448287,-384.76,0.000218,7]
[363283643,1748657448296,-160.0,0.00021823,16]
[363283644,1748657448305,-3536.93518509,0.00021836,2]
[363283646,1748657448315,-542.20288829,0.00021836,30]
[363283648,1748657448324,-542.20288829,0.00021894,30]
[363283650,1748657448334,-6328.3530825,0.000219,2]
[363283652,1748657448346,-12975.61023078,0.00021917,60]
[363283655,1748657448358,-45501.16303023,0.00021917,60]
[363283660,1748657448402,-11548.15316928,0.00021917,60]
[363283662,1748657448414,-12707.74581677,0.00021917,60]
[363283681,1748657448591,-430.0,0.00016438,2]
[363283683,1748657448600,-430.0,0.00016712,2]
[363283685,1748657448610,-430.0,0.00016986,2]
[363283687,1748657448619,-552.88,0.0001726,2]
[363283689,1748657448628,-500.0,0.00019176,2]
[363283691,1748657448638,-184.83933637,0.00020335,2]
[363283693,1748657448647,-11719.04066363,0.00021917,60]
[363283695,1748657448659,-174154.47542478,0.00021917,60]
[363283698,1748657448676,-1096.22202573,0.00021917,60]
[363283700,1748657448685,-151.0,0.00021917,2]
[363283701,1748657448694,-200.0,0.00021917,2]
[363283703,1748657448703,-538.62,0.00021917,2]
[363283705,1748657448713,-538.62,0.00021917,2]
[363283707,1748657448722,-538.62,0.00021917,2]
[363283709,1748657448731,-538.62,0.00021917,2]
[363283711,1748657448741,-538.62,0.00021917,2]
[363283713,1748657448750,-538.62,0.00021917,2]
[363283715,1748657448758,-538.62,0.00021917,2]
[363283717,1748657448767,-538.62,0.00021917,2]
[363283719,1748657448777,-538.62,0.00021917,2]
[363283722,1748657448787,-538.62,0.00021917,2]
[363283723,1748657448796,-538.62,0.00021917,2]
[363283725,1748657448805,-538.62,0.00021917,2]
[363283728,1748657448814,-538.62,0.00021917,2]
[363283729,1748657448823,-538.62,0.00021917,2]
[363283731,1748657448832,-538.62,0.00021917,2]
[363283733,1748657448842,-538.62,0.00021917,2]
[363283735,1748657448850,-538.62,0.00021917,2]
[363283737,1748657448859,-538.62,0.00021917,2]
[363283739,1748657448868,-538.62,0.00021917,2]
[363283741,1748657448877,-578.7,0.00021917,2]
[363283743,1748657448887,-640.0,0.00021917,2]
[363283745,1748657448896,-1267.95,0.00021917,2]
[363283747,1748657448906,-500.0,0.00021917,2]
[363283749,1748657448916,-430.0,0.00021917,2]
[363283751,1748657448924,-604.05,0.00021917,2]
[363283753,1748657448934,-1252.54,0.00021917,2]
[363283755,1748657448943,-1208.2,0.00021917,2]
[363283757,1748657448952,-1485.08,0.00021917,2]
[363283759,1748657448961,-779.43,0.00021917,2]
[363283761,1748657448970,-1041.81,0.00021917,2]
[363283763,1748657448979,-430.0,0.00021917,2]
[363283765,1748657448988,-500.0,0.00021917,2]
[363283767,1748657448998,-500.0,0.00021917,2]
[363283769,1748657449008,-500.0,0.00021917,2]
[363283771,1748657449017,-500.0,0.00021917,2]
[363283773,1748657449026,-500.0,0.00021917,2]
[363283775,1748657449036,-500.0,0.00021917,2]
[363283776,1748657449045,-500.0,0.00021917,2]
[363283778,1748657449055,-325.8731103,0.00021917,2]
[363283780,1748657449064,-816.65,0.00021917,2]
[363283782,1748657449073,-199.743154,0.00021917,2]
[363283784,1748657449083,-151.0,0.00021917,2]
[363283786,1748657449092,-611.56,0.00021917,2]
[363283788,1748657449101,-500.0,0.00021917,2]
[363283790,1748657449110,-500.0,0.00021917,2]
[363283792,1748657449120,-500.0,0.00021917,2]
[363283794,1748657449129,-500.0,0.00021917,2]
[363283796,1748657449140,-500.0,0.00021917,2]
[363283798,1748657449150,-500.0,0.00021917,2]
[363283800,1748657449159,-500.0,0.00021917,2]
[363283802,1748657449169,-500.0,0.00021917,2]
[363283804,1748657449179,-361.42355718,0.00021917,2]
[363283806,1748657449189,-486.04,0.00021917,2]
[363283808,1748657449198,-522.38,0.00021917,2]
[363283810,1748657449208,-151.0,0.00021917,2]
[363283812,1748657449217,-151.343323,0.00021917,2]
[363283814,1748657449227,-1148.61,0.00021917,2]
[363283816,1748657449237,-153.0,0.00021918,2]
[363283818,1748657449247,-170.0,0.00021918,2]
[363283820,1748657449256,-170.0,0.00021918,2]
[363283822,1748657449265,-153.0,0.00021918,2]
[363283824,1748657449275,-170.0,0.00021918,2]
[363283826,1748657449285,-153.0,0.00021918,2]
[363283828,1748657449294,-170.0,0.00021918,2]
[363283829,1748657449304,-153.0,0.00021918,2]
[363283831,1748657449313,-153.0,0.00021918,2]
[363283833,1748657449323,-153.0,0.00021918,2]
[363283835,1748657449332,-153.0,0.00021918,2]
[363283837,1748657449345,-153.0,0.00021918,2]
[363283839,1748657449355,-153.0,0.00021918,2]
[363283841,1748657449364,-153.0,0.00021918,2]
[363283843,1748657449374,-153.0,0.00021918,2]
[363283845,1748657449385,-153.0,0.00021918,2]
[363283847,1748657449396,-153.0,0.00021918,2]
[363283849,1748657449406,-153.0,0.00021918,2]
[363283851,1748657449417,-153.0,0.00021918,2]
[363283853,1748657449427,-153.0,0.00021918,2]
[363283855,1748657449437,-153.0,0.00021918,2]
[363283857,1748657449446,-153.0,0.00021918,2]
[363283859,1748657449456,-153.0,0.00021918,2]
[363283861,1748657449466,-153.0,0.00021918,2]
[363283863,1748657449475,-153.0,0.00021918,2]
[363283865,1748657449485,-153.0,0.00021918,2]
[363283867,1748657449494,-153.0,0.00021918,2]
[363283869,1748657449504,-153.0,0.00021918,2]
[363283871,1748657449513,-153.0,0.00021918,2]
[363283873,1748657449522,-153.0,0.00021918,2]
[363283875,1748657449532,-153.0,0.00021918,2]
[363283877,1748657449541,-153.0,0.00021918,2]
[363283879,1748657449550,-153.0,0.00021918,2]
[363283881,1748657449561,-153.0,0.00021918,2]
[363283883,1748657449570,-153.0,0.00021918,2]
[363283885,1748657449579,-153.0,0.00021918,2]
[363283887,1748657449589,-153.0,0.00021918,2]
[363283889,1748657449598,-153.0,0.00021918,2]
[363283891,1748657449607,-153.0,0.00021918,2]
[363283893,1748657449617,-153.0,0.00021918,2]
[363283895,1748657449626,-153.0,0.00021918,2]
[363283897,1748657449637,-153.0,0.00021918,2]
[363283899,1748657449647,-153.0,0.00021918,2]
[363283901,1748657449656,-153.0,0.00021918,2]
[363283903,1748657449666,-153.0,0.00021918,2]
[363283905,1748657449675,-153.0,0.00021918,2]
[363283907,1748657449684,-153.0,0.00021918,2]
[363283909,1748657449693,-153.0,0.00021918,2]
[363283911,1748657449702,-153.0,0.00021918,2]
[363283913,1748657449712,-153.0,0.00021918,2]
[363283915,1748657449721,-267.36784538,0.00021918,2]
[363283917,1748657449730,-153.0,0.00021918,2]
[363283919,1748657449740,-153.0,0.00021918,2]
[363283921,1748657449749,-153.0,0.00021918,2]
[363283923,1748657449758,-153.0,0.00021918,2]
[363283925,1748657449767,-153.0,0.00021918,2]
[363283927,1748657449777,-175.14871542,0.00021918,2]
[363283929,1748657449786,-170.0,0.00021918,2]
[363283931,1748657449795,-153.0,0.00021918,2]
[363283933,1748657449804,-153.0,0.00021918,2]
[363283935,1748657449813,-153.0,0.00021918,2]
[363283937,1748657449823,-153.0,0.00021918,2]
[363283939,1748657449832,-153.0,0.00021918,2]
[363283941,1748657449842,-153.0,0.00021918,2]
[363283943,1748657449852,-153.0,0.00021918,2]
[363283944,1748657449861,-1084.23577659,0.00021953,30]
[363283947,1748657449874,-206.0,0.0002197,2]
[363283949,1748657449885,-500.0,0.00021973,2]
[363283951,1748657449894,-500.0,0.00021973,2]
[363283953,1748657449904,-151.49212468,0.00021982,2]
[363283955,1748657449915,-8010.75721861,0.00022,2]
[363283957,1748657449924,-500.0,0.00022,2]
[363283959,1748657449935,-4091.37216796,0.00022,2]
[363283961,1748657449945,-160.0,0.00022,17]
[363283962,1748657449955,-297.14207944,0.00022,5]
[363283965,1748657449965,-1999.86,0.00022,7]
[363283966,1748657449974,-41241.9450752,0.00022,2]
[363283969,1748657449989,-518.06967604,0.00022,2]
[363283971,1748657450000,-2976.12354538,0.00022,2]
[363283975,1748657450032,-2200.0,0.00020547,2]
[363283977,1748657450043,-15407.88433131,0.00022,2]
[363283980,1748657450056,-16911.19737207,0.00022,2]
[363283982,1748657450066,-158844.21,0.00022,7]
[363283984,1748657450076,-350.22822349,0.00022,2]
[363283986,1748657450087,-500.0,0.00022,2]
[363283987,1748657450095,-52145.83376544,0.00022,7]
[363283989,1748657450106,-7031.65,0.00022,7]
[363283992,1748657450116,-26697.95161898,0.00022,2]
[363285256,1748657718345,500.0,0.0002,120]
[363285257,1748657747093,661.0,0.0002,120]
[363285264,1748658002136,10000.0,0.000141,2]
[363285267,1748658042126,10000.0,0.0002,120]
[363285268,1748658050149,10000.0,0.000141,2]
[363285269,1748658060044,10000.0,0.000141,2]
[363285270,1748658067576,10000.0,0.000141,2]
[363285271,1748658096377,10000.0,0.0002,120]
[363285272,1748658109054,10000.0,0.000141,2]
[363285273,1748658113407,188.007887,0.00013699,2]
[363285274,1748658117367,10000.0,0.000141,2]
[363285276,1748658260494,5064.398,0.000141,2]
[363285277,1748658335139,-208.29983283,0.00015282,2]
[363285279,1748658459696,556.5,0.000141,2]
[363285291,1748658548110,-2102.94440022,0.0001507,2]